[Event "January 2 Early 2024"]
[Site "https://www.chess.com"]
[Date "2024.01.02"]
[Round "10"]
[White "Novikova, Margarita"]
[Black "Zampronha, Wladimir Camilo"]
[Result "0-1"]
[Board "145"]
[TimeControl "180+1"]
[WhiteFideId "14109689"]
[BlackFideId "2103087"]
[WhiteElo "2135"]
[BlackElo "2307"]
[WhiteTeam "GER"]
[BlackTeam "BRA"]
[WhiteClock "0:00:41"]
[BlackClock "0:00:28"]

1. e4 {[%clk 0:02:59]}  c5 {[%clk 0:03:00]} 2. Nc3 {[%clk 0:02:58]}  Nc6 {[%clk 0:02:59]} 3. d3 {[%clk 0:02:58]}  e6 {[%clk 0:02:59]} 4. g3 {[%clk 0:02:58]}  d5 {[%clk 0:02:59]} 5. exd5 {[%clk 0:02:57]}  exd5 {[%clk 0:03:00]} 6. Bg2 {[%clk 0:02:56]}  Nf6 {[%clk 0:03:00]} 7. Bg5 {[%clk 0:02:55]}  d4 {[%clk 0:03:00]} 8. Ne4 {[%clk 0:02:54]}  Be7 {[%clk 0:03:00]} 9. Nxf6+ {[%clk 0:02:52]}  Bxf6 {[%clk 0:03:01]} 10. Bxf6 {[%clk 0:02:52]}  Qxf6 {[%clk 0:03:01]} 11. Ne2 {[%clk 0:02:52]}  O-O {[%clk 0:02:59]} 12. O-O {[%clk 0:02:52]}  Bg4 {[%clk 0:02:57]} 13. Qd2 {[%clk 0:02:51]}  Rfe8 {[%clk 0:02:49]} 14. Nf4 {[%clk 0:02:50]}  Rad8 {[%clk 0:02:40]} 15. Rfe1 {[%clk 0:02:49]}  h6 {[%clk 0:02:38]} 16. Nd5 {[%clk 0:02:48]}  Qd6 {[%clk 0:02:37]} 17. Nf4 {[%clk 0:02:38]}  b6 {[%clk 0:02:30]} 18. h3 {[%clk 0:02:34]}  Bc8 {[%clk 0:02:29]} 19. a3 {[%clk 0:02:30]}  Ne5 {[%clk 0:02:18]} 20. Kh1 {[%clk 0:02:26]}  Qc7 {[%clk 0:02:10]} 21. Re2 {[%clk 0:02:26]}  Nc6 {[%clk 0:02:00]} 22. Rae1 {[%clk 0:02:23]}  Rxe2 {[%clk 0:01:59]} 23. Qxe2 {[%clk 0:02:23]}  Qd6 {[%clk 0:01:56]} 24. Nd5 {[%clk 0:02:18]}  Be6 {[%clk 0:01:55]} 25. Nf4 {[%clk 0:02:17]}  Bd7 {[%clk 0:01:56]} 26. Qh5 {[%clk 0:02:12]}  Re8 {[%clk 0:01:51]} 27. Rxe8+ {[%clk 0:02:05]}  Bxe8 {[%clk 0:01:52]} 28. Qe2 {[%clk 0:02:04]}  Ne5 {[%clk 0:01:50]} 29. Nd5 {[%clk 0:02:03]}  Bc6 {[%clk 0:01:48]} 30. Nf4 {[%clk 0:02:01]}  Bxg2+ {[%clk 0:01:46]} 31. Nxg2 {[%clk 0:02:02]}  Qe6 {[%clk 0:01:43]} 32. Nf4 {[%clk 0:01:56]}  Qc6+ {[%clk 0:01:37]} 33. Qe4 {[%clk 0:01:54]}  Qxe4+ {[%clk 0:01:35]} 34. dxe4 {[%clk 0:01:54]}  Nc4 {[%clk 0:01:35]} 35. Nd3 {[%clk 0:01:46]}  Kf8 {[%clk 0:01:33]} 36. f4 {[%clk 0:01:45]}  Ke7 {[%clk 0:01:32]} 37. a4 {[%clk 0:01:44]}  Nd2 {[%clk 0:01:30]} 38. e5 {[%clk 0:01:41]}  Ke6 {[%clk 0:01:29]} 39. g4 {[%clk 0:01:41]}  Kd5 {[%clk 0:01:27]} 40. b3 {[%clk 0:01:41]}  Ke4 {[%clk 0:01:24]} 41. f5 {[%clk 0:01:35]}  Kd5 {[%clk 0:01:16]} 42. Kg2 {[%clk 0:01:31]}  a6 {[%clk 0:01:07]} 43. h4 {[%clk 0:01:21]}  b5 {[%clk 0:01:05]} 44. axb5 {[%clk 0:01:21]}  axb5 {[%clk 0:01:06]} 45. g5 {[%clk 0:01:18]}  hxg5 {[%clk 0:01:06]} 46. hxg5 {[%clk 0:01:16]}  Ne4 {[%clk 0:01:06]} 47. f6 {[%clk 0:00:51]}  g6 {[%clk 0:00:59]} 48. Nf4+ {[%clk 0:00:50]}  Kxe5 {[%clk 0:00:57]} 49. Nxg6+ {[%clk 0:00:50]}  Kf5 {[%clk 0:00:45]} 50. Nh8 {[%clk 0:00:45]}  Nxg5 {[%clk 0:00:44]} 51. Kf2 {[%clk 0:00:43]}  Kxf6 {[%clk 0:00:44]} 52. Ke2 {[%clk 0:00:43]}  Kg7 {[%clk 0:00:43]} 53. Nxf7 {[%clk 0:00:44]}  Kxf7 {[%clk 0:00:43]} 54. Kd3 {[%clk 0:00:44]}  Nf3 {[%clk 0:00:35]} 55. b4 {[%clk 0:00:42]}  cxb4 {[%clk 0:00:30]} 56. Ke4 {[%clk 0:00:41]}  Ke6 {[%clk 0:00:30]} 57. Kxf3 {[%clk 0:00:41]}  Kd5 {[%clk 0:00:31]} 58. Ke2 {[%clk 0:00:41]}  Kc4 {[%clk 0:00:28]} 59. Kd2 {[%clk 0:00:41]}  b3 {[%clk 0:00:28]} 60. cxb3+ {[%clk 0:00:41]}  Kxb3 {[%clk 0:00:28]} 61. Kd3 {[%clk 0:00:41]}  b4 {[%clk 0:00:28]} 0-1

[Event "January 2 Early 2024"]
[Site "https://www.chess.com"]
[Date "2024.01.02"]
[Round "10"]
[White "Skaric, Djuro"]
[Black "Quirke, Jeffrey"]
[Result "0-1"]
[Board "146"]
[TimeControl "180+1"]
[WhiteFideId "934569"]
[BlackFideId "2013029"]
[WhiteElo "2298"]
[BlackElo "2068"]
[WhiteTeam "SRB"]
[BlackTeam "USA"]
[WhiteClock "0:00:42"]
[BlackClock "0:00:20"]

1. g3 {[%clk 0:03:00]}  Nf6 {[%clk 0:02:58]} 2. Bg2 {[%clk 0:03:01]}  g6 {[%clk 0:02:58]} 3. d3 {[%clk 0:03:02]}  Bg7 {[%clk 0:02:59]} 4. Nf3 {[%clk 0:03:03]}  O-O {[%clk 0:02:59]} 5. O-O {[%clk 0:03:04]}  d6 {[%clk 0:02:59]} 6. Nc3 {[%clk 0:03:05]}  Nc6 {[%clk 0:02:59]} 7. e4 {[%clk 0:03:05]}  e5 {[%clk 0:02:59]} 8. h3 {[%clk 0:03:05]}  a5 {[%clk 0:02:59]} 9. Ne1 {[%clk 0:03:04]}  Nh5 {[%clk 0:02:49]} 10. Ne2 {[%clk 0:03:03]}  f5 {[%clk 0:02:44]} 11. f4 {[%clk 0:03:03]}  exf4 {[%clk 0:02:41]} 12. gxf4 {[%clk 0:03:03]}  Nd4 {[%clk 0:02:34]} 13. c3 {[%clk 0:03:02]}  Nxe2+ {[%clk 0:02:33]} 14. Qxe2 {[%clk 0:03:02]}  Qh4 {[%clk 0:02:16]} 15. Qf2 {[%clk 0:02:51]}  Qxf2+ {[%clk 0:02:15]} 16. Rxf2 {[%clk 0:02:51]}  fxe4 {[%clk 0:02:15]} 17. dxe4 {[%clk 0:02:50]}  Bd7 {[%clk 0:02:16]} 18. Be3 {[%clk 0:02:38]}  a4 {[%clk 0:02:14]} 19. Nd3 {[%clk 0:02:27]}  a3 {[%clk 0:02:12]} 20. Bd4 {[%clk 0:02:26]}  axb2 {[%clk 0:02:07]} 21. Nxb2 {[%clk 0:02:26]}  Nxf4 {[%clk 0:01:59]} 22. Kh2 {[%clk 0:02:20]}  Nxg2 {[%clk 0:01:53]} 23. Rxg2 {[%clk 0:02:20]}  Bc6 {[%clk 0:01:47]} 24. Re2 {[%clk 0:02:15]}  Rfe8 {[%clk 0:01:45]} 25. Bxg7 {[%clk 0:02:05]}  Kxg7 {[%clk 0:01:44]} 26. e5 {[%clk 0:02:02]}  Rxe5 {[%clk 0:01:43]} 27. Rxe5 {[%clk 0:02:02]}  dxe5 {[%clk 0:01:43]} 28. Nc4 {[%clk 0:02:02]}  e4 {[%clk 0:01:35]} 29. Ne5 {[%clk 0:02:01]}  Bd5 {[%clk 0:01:28]} 30. a3 {[%clk 0:02:01]}  Re8 {[%clk 0:01:24]} 31. Ng4 {[%clk 0:02:00]}  e3 {[%clk 0:01:19]} 32. Re1 {[%clk 0:01:59]}  e2 {[%clk 0:01:19]} 33. Kg3 {[%clk 0:01:59]}  h5 {[%clk 0:01:15]} 34. Nh2 {[%clk 0:01:51]}  Re3+ {[%clk 0:01:14]} 35. Kf4 {[%clk 0:01:44]}  Rxc3 {[%clk 0:01:08]} 36. Rxe2 {[%clk 0:01:43]}  Rxa3 {[%clk 0:01:07]} 37. Rd2 {[%clk 0:01:41]}  c6 {[%clk 0:01:05]} 38. Rb2 {[%clk 0:01:34]}  Rxh3 {[%clk 0:01:03]} 39. Ke5 {[%clk 0:01:32]}  b5 {[%clk 0:00:59]} 40. Nf1 {[%clk 0:01:31]}  Kh6 {[%clk 0:00:56]} 41. Kd4 {[%clk 0:01:31]}  Rh4+ {[%clk 0:00:50]} 42. Kc5 {[%clk 0:01:31]}  Rf4 {[%clk 0:00:46]} 43. Ne3 {[%clk 0:01:28]}  h4 {[%clk 0:00:44]} 44. Kd6 {[%clk 0:01:24]}  h3 {[%clk 0:00:42]} 45. Rh2 {[%clk 0:01:23]}  Rf3 {[%clk 0:00:34]} 46. Ng4+ {[%clk 0:01:21]}  Kg5 {[%clk 0:00:34]} 47. Ne5 {[%clk 0:01:21]}  Ra3 {[%clk 0:00:29]} 48. Kc5 {[%clk 0:01:09]}  Kf5 {[%clk 0:00:27]} 49. Nd7 {[%clk 0:00:57]}  Bg2 {[%clk 0:00:24]} 50. Kd4 {[%clk 0:00:50]}  g5 {[%clk 0:00:23]} 51. Nc5 {[%clk 0:00:49]}  g4 {[%clk 0:00:21]} 52. Nd3 {[%clk 0:00:47]}  Rxd3+ {[%clk 0:00:20]} 53. Kxd3 {[%clk 0:00:42]}  g3 {[%clk 0:00:20]} 0-1

[Event "January 2 Early 2024"]
[Site "https://www.chess.com"]
[Date "2024.01.02"]
[Round "10"]
[White "Mendez Fortes, Eduardo Jesus"]
[Black "Mesa Cruz, Juan Carlos"]
[Result "1-0"]
[Board "153"]
[TimeControl "180+1"]
[WhiteFideId "3502376"]
[BlackFideId "6423400"]
[WhiteElo "2568"]
[BlackElo "2286"]
[WhiteTeam "CUB"]
[BlackTeam "DOM"]
[WhiteClock "0:00:52"]
[BlackClock "0:00:04"]

1. d4 {[%clk 0:03:00]}  Nf6 {[%clk 0:02:53]} 2. c4 {[%clk 0:02:59]}  e6 {[%clk 0:02:52]} 3. Nc3 {[%clk 0:02:59]}  Bb4 {[%clk 0:02:52]} 4. e3 {[%clk 0:02:58]}  O-O {[%clk 0:02:51]} 5. Bd3 {[%clk 0:02:57]}  d5 {[%clk 0:02:50]} 6. Nf3 {[%clk 0:02:54]}  b6 {[%clk 0:02:50]} 7. cxd5 {[%clk 0:02:53]}  exd5 {[%clk 0:02:49]} 8. O-O {[%clk 0:02:53]}  Bb7 {[%clk 0:02:48]} 9. Ne5 {[%clk 0:02:52]}  Bd6 {[%clk 0:02:42]} 10. f4 {[%clk 0:02:51]}  c5 {[%clk 0:02:42]} 11. Qe1 {[%clk 0:02:51]}  Nc6 {[%clk 0:02:42]} 12. Nxc6 {[%clk 0:02:46]}  Bxc6 {[%clk 0:02:41]} 13. Qg3 {[%clk 0:02:46]}  Re8 {[%clk 0:02:32]} 14. Qh3 {[%clk 0:02:44]}  Ne4 {[%clk 0:02:27]} 15. Bxe4 {[%clk 0:02:30]}  dxe4 {[%clk 0:02:28]} 16. d5 {[%clk 0:02:30]}  Bb7 {[%clk 0:02:27]} 17. b3 {[%clk 0:02:26]}  a6 {[%clk 0:02:24]} 18. Bb2 {[%clk 0:02:24]}  b5 {[%clk 0:02:24]} 19. Rad1 {[%clk 0:02:21]}  Bf8 {[%clk 0:02:05]} 20. g4 {[%clk 0:02:18]}  Rc8 {[%clk 0:01:57]} 21. Qg2 {[%clk 0:02:17]}  c4 {[%clk 0:01:51]} 22. Nxe4 {[%clk 0:02:16]}  cxb3 {[%clk 0:01:35]} 23. axb3 {[%clk 0:02:16]}  Qe7 {[%clk 0:01:34]} 24. Rd4 {[%clk 0:02:09]}  Bxd5 {[%clk 0:01:34]} 25. Rxd5 {[%clk 0:02:01]}  Qxe4 {[%clk 0:01:33]} 26. Qxe4 {[%clk 0:02:01]}  Rxe4 {[%clk 0:01:34]} 27. Bd4 {[%clk 0:02:01]}  Re6 {[%clk 0:01:21]} 28. Kf2 {[%clk 0:01:51]}  Rc2+ {[%clk 0:01:19]} 29. Kg3 {[%clk 0:01:50]}  h6 {[%clk 0:01:09]} 30. h4 {[%clk 0:01:43]}  Rec6 {[%clk 0:01:01]} 31. g5 {[%clk 0:01:42]}  h5 {[%clk 0:01:00]} 32. f5 {[%clk 0:01:41]}  Bd6+ {[%clk 0:00:59]} 33. Kf3 {[%clk 0:01:40]}  Rh2 {[%clk 0:00:59]} 34. Rxd6 {[%clk 0:01:26]}  Rxd6 {[%clk 0:00:56]} 35. Be5 {[%clk 0:01:26]}  Rdd2 {[%clk 0:00:16]} 36. Bxh2 {[%clk 0:01:24]}  Rxh2 {[%clk 0:00:17]} 37. Kg3 {[%clk 0:01:20]}  Re2 {[%clk 0:00:11]} 38. Kf4 {[%clk 0:01:17]}  Rb2 {[%clk 0:00:09]} 39. Ra1 {[%clk 0:01:16]}  Rxb3 {[%clk 0:00:10]} 40. Rxa6 {[%clk 0:01:16]}  Kf8 {[%clk 0:00:09]} 41. Ra7 {[%clk 0:01:13]}  Rb1 {[%clk 0:00:08]} 42. g6 {[%clk 0:01:13]}  fxg6 {[%clk 0:00:09]} 43. fxg6 {[%clk 0:01:14]}  b4 {[%clk 0:00:08]} 44. Rf7+ {[%clk 0:01:12]}  Kg8 {[%clk 0:00:09]} 45. Kg5 {[%clk 0:01:10]}  b3 {[%clk 0:00:06]} 46. Rb7 {[%clk 0:01:10]}  Kf8 {[%clk 0:00:05]} 47. Kxh5 {[%clk 0:01:08]}  b2 {[%clk 0:00:06]} 48. e4 {[%clk 0:01:08]}  Ke8 {[%clk 0:00:03]} 49. e5 {[%clk 0:01:07]}  Re1 {[%clk 0:00:02]} 50. Rxb2 {[%clk 0:01:06]}  Rxe5+ {[%clk 0:00:03]} 51. Kg4 {[%clk 0:01:06]}  Re4+ {[%clk 0:00:03]} 52. Kg5 {[%clk 0:01:05]}  Re5+ {[%clk 0:00:03]} 53. Kf4 {[%clk 0:01:05]}  Rh5 {[%clk 0:00:04]} 54. Kg4 {[%clk 0:01:02]}  Re5 {[%clk 0:00:04]} 55. Rf2 {[%clk 0:01:01]}  Re4+ {[%clk 0:00:04]} 56. Kg5 {[%clk 0:01:02]}  Re5+ {[%clk 0:00:04]} 57. Rf5 {[%clk 0:01:01]}  Re1 {[%clk 0:00:05]} 58. Rf7 {[%clk 0:01:01]}  Re5+ {[%clk 0:00:04]} 59. Kf4 {[%clk 0:00:59]}  Rh5 {[%clk 0:00:04]} 60. Kg4 {[%clk 0:00:59]}  Rd5 {[%clk 0:00:01]} 61. Rxg7 {[%clk 0:00:59]}  Kf8 {[%clk 0:00:02]} 62. Rf7+ {[%clk 0:00:59]}  Kg8 {[%clk 0:00:02]} 63. h5 {[%clk 0:00:59]}  Rd4+ {[%clk 0:00:03]} 64. Kg5 {[%clk 0:00:59]}  Rd5+ {[%clk 0:00:04]} 65. Kh6 {[%clk 0:00:58]}  Ra5 {[%clk 0:00:05]} 66. Rb7 {[%clk 0:00:57]}  Ra8 {[%clk 0:00:05]} 67. Rb6 {[%clk 0:00:56]}  Kh8 {[%clk 0:00:06]} 68. Kg5 {[%clk 0:00:56]}  Rf8 {[%clk 0:00:05]} 69. h6 {[%clk 0:00:55]}  Ra8 {[%clk 0:00:05]} 70. Rb7 {[%clk 0:00:52]}  Ra5+ {[%clk 0:00:04]} 71. Kf4 {[%clk 0:00:52]}  Ra4+ {[%clk 0:00:04]} 72. Ke3 {[%clk 0:00:52]}  Ra6 {[%clk 0:00:04]} 73. Rb8# {[%clk 0:00:52]} 1-0

[Event "January 2 Early 2024"]
[Site "https://www.chess.com"]
[Date "2024.01.02"]
[Round "10"]
[White "Dyulgerov, Volen"]
[Black "Gutierrez Carmona, Juan Alejandro"]
[Result "1-0"]
[Board "155"]
[TimeControl "180+1"]
[WhiteFideId "2918978"]
[BlackFideId "5106770"]
[WhiteElo "2412"]
[BlackElo "2199"]
[WhiteTeam "BUL"]
[BlackTeam "MEX"]
[WhiteClock "0:00:02"]
[BlackClock "0:00:00"]

1. e4 {[%clk 0:03:00]}  e5 {[%clk 0:02:59]} 2. d4 {[%clk 0:03:00]}  exd4 {[%clk 0:02:59]} 3. c3 {[%clk 0:03:00]}  d5 {[%clk 0:02:57]} 4. e5 {[%clk 0:02:58]}  dxc3 {[%clk 0:02:55]} 5. Nf3 {[%clk 0:02:57]}  cxb2 {[%clk 0:02:48]} 6. Bxb2 {[%clk 0:02:58]}  Bb4+ {[%clk 0:02:34]} 7. Nc3 {[%clk 0:02:53]}  Ne7 {[%clk 0:02:32]} 8. Bd3 {[%clk 0:02:52]}  c5 {[%clk 0:02:22]} 9. O-O {[%clk 0:02:49]}  Nbc6 {[%clk 0:02:21]} 10. Nb5 {[%clk 0:02:45]}  c4 {[%clk 0:02:17]} 11. Bc2 {[%clk 0:02:32]}  h6 {[%clk 0:01:59]} 12. Nd6+ {[%clk 0:01:50]}  Bxd6 {[%clk 0:01:54]} 13. exd6 {[%clk 0:01:51]}  Qxd6 {[%clk 0:01:54]} 14. Re1 {[%clk 0:00:40]}  O-O {[%clk 0:01:52]} 15. Re3 {[%clk 0:00:40]}  Nf5 {[%clk 0:01:42]} 16. Ra3 {[%clk 0:00:12]}  Be6 {[%clk 0:01:29]} 17. g4 {[%clk 0:00:09]}  Nfe7 {[%clk 0:01:25]} 18. g5 {[%clk 0:00:09]}  h5 {[%clk 0:00:15]} 19. Nd4 {[%clk 0:00:03]}  Qf4 {[%clk 0:00:08]} 20. Qxh5 {[%clk 0:00:02]}  g6 {[%clk 0:00:02]} 21. Qh8+ {[%clk 0:00:01]}  Kxh8 {[%clk 0:00:00]} 22. Nf5+ {[%clk 0:00:02]} 1-0

[Event "January 2 Early 2024"]
[Site "https://www.chess.com"]
[Date "2024.01.02"]
[Round "10"]
[White "Diaz Herquinio, Brahian"]
[Black "Dargan, Paul A G"]
[Result "0-1"]
[Board "156"]
[TimeControl "180+1"]
[WhiteFideId "3809480"]
[BlackFideId "416762"]
[WhiteElo "2400"]
[BlackElo "2183"]
[WhiteTeam "PER"]
[BlackTeam "ENG"]
[WhiteClock "0:01:34"]
[BlackClock "0:01:03"]

1. e4 {[%clk 0:02:59]}  c5 {[%clk 0:02:58]} 2. Nf3 {[%clk 0:02:57]}  Nc6 {[%clk 0:02:57]} 3. d4 {[%clk 0:02:57]}  cxd4 {[%clk 0:02:58]} 4. Nxd4 {[%clk 0:02:58]}  Nf6 {[%clk 0:02:57]} 5. Nc3 {[%clk 0:02:58]}  e5 {[%clk 0:02:57]} 6. Ndb5 {[%clk 0:02:58]}  d6 {[%clk 0:02:58]} 7. Bg5 {[%clk 0:02:58]}  a6 {[%clk 0:02:58]} 8. Na3 {[%clk 0:02:58]}  b5 {[%clk 0:02:59]} 9. Nd5 {[%clk 0:02:59]}  Be7 {[%clk 0:02:58]} 10. Bxf6 {[%clk 0:02:59]}  Bxf6 {[%clk 0:02:57]} 11. c4 {[%clk 0:03:00]}  Ne7 {[%clk 0:02:41]} 12. cxb5 {[%clk 0:02:55]}  O-O {[%clk 0:02:39]} 13. b6 {[%clk 0:02:14]}  Nxd5 {[%clk 0:02:27]} 14. Qxd5 {[%clk 0:02:13]}  Qxb6 {[%clk 0:02:24]} 15. Nc4 {[%clk 0:02:10]}  Qb4+ {[%clk 0:01:57]} 16. Qd2 {[%clk 0:02:07]}  Qxd2+ {[%clk 0:01:56]} 17. Nxd2 {[%clk 0:01:56]}  Bb7 {[%clk 0:01:44]} 18. Bc4 {[%clk 0:01:53]}  Rac8 {[%clk 0:01:43]} 19. b3 {[%clk 0:01:45]}  Rfd8 {[%clk 0:01:23]} 20. Ke2 {[%clk 0:01:43]}  d5 {[%clk 0:01:20]} 21. exd5 {[%clk 0:01:42]}  Bxd5 {[%clk 0:01:20]} 22. Bxd5 {[%clk 0:01:42]}  Rxd5 {[%clk 0:01:19]} 23. Rac1 {[%clk 0:01:42]}  Rxd2+ {[%clk 0:01:04]} 24. Kxd2 {[%clk 0:01:36]}  Bg5+ {[%clk 0:01:04]} 25. Ke2 {[%clk 0:01:34]}  Rxc1 {[%clk 0:01:03]} 0-1

[Event "January 2 Early 2024"]
[Site "https://www.chess.com"]
[Date "2024.01.02"]
[Round "10"]
[White "Agrest, Inna"]
[Black "VictMin"]
[Result "1-0"]
[Board "160"]
[TimeControl "180+1"]
[WhiteFideId "1708830"]
[WhiteElo "2337"]
[BlackElo "2029"]
[WhiteTeam "SWE"]
[WhiteClock "0:00:17"]
[BlackClock "0:00:00"]

1. e4 {[%clk 0:03:00]}  c6 {[%clk 0:02:59]} 2. d4 {[%clk 0:03:01]}  d5 {[%clk 0:03:00]} 3. f3 {[%clk 0:03:01]}  dxe4 {[%clk 0:02:58]} 4. fxe4 {[%clk 0:03:02]}  e5 {[%clk 0:02:58]} 5. Nf3 {[%clk 0:03:03]}  Bg4 {[%clk 0:02:57]} 6. c3 {[%clk 0:03:03]}  Nd7 {[%clk 0:02:52]} 7. Bd3 {[%clk 0:03:01]}  Ngf6 {[%clk 0:02:51]} 8. O-O {[%clk 0:03:01]}  Bd6 {[%clk 0:02:51]} 9. Nbd2 {[%clk 0:03:00]}  O-O {[%clk 0:02:50]} 10. Qe1 {[%clk 0:03:00]}  Bh5 {[%clk 0:02:42]} 11. Qh4 {[%clk 0:02:53]}  Bg6 {[%clk 0:02:41]} 12. Bc2 {[%clk 0:02:48]}  Qc7 {[%clk 0:02:41]} 13. dxe5 {[%clk 0:02:43]}  Nxe5 {[%clk 0:02:38]} 14. Nxe5 {[%clk 0:02:44]}  Bxe5 {[%clk 0:02:38]} 15. Nf3 {[%clk 0:02:45]}  Rfe8 {[%clk 0:02:31]} 16. Bg5 {[%clk 0:02:44]}  Qb6+ {[%clk 0:02:13]} 17. Kh1 {[%clk 0:02:32]}  Qxb2 {[%clk 0:02:12]} 18. Nxe5 {[%clk 0:02:27]}  Rxe5 {[%clk 0:02:04]} 19. Bxf6 {[%clk 0:02:24]}  gxf6 {[%clk 0:02:00]} 20. Qxf6 {[%clk 0:02:21]}  Rae8 {[%clk 0:01:59]} 21. Bb3 {[%clk 0:02:17]}  R5e7 {[%clk 0:01:27]} 22. Rad1 {[%clk 0:02:01]}  Qe2 {[%clk 0:01:07]} 23. Rde1 {[%clk 0:01:54]}  Qg4 {[%clk 0:01:02]} 24. h3 {[%clk 0:01:51]}  Qd7 {[%clk 0:00:54]} 25. e5 {[%clk 0:01:47]}  b5 {[%clk 0:00:31]} 26. Rd1 {[%clk 0:01:08]}  Qc7 {[%clk 0:00:28]} 27. Rd6 {[%clk 0:01:07]}  a5 {[%clk 0:00:23]} 28. a3 {[%clk 0:00:56]}  a4 {[%clk 0:00:23]} 29. Ba2 {[%clk 0:00:56]}  c5 {[%clk 0:00:23]} 30. Bd5 {[%clk 0:00:56]}  b4 {[%clk 0:00:22]} 31. cxb4 {[%clk 0:00:53]}  cxb4 {[%clk 0:00:23]} 32. axb4 {[%clk 0:00:52]}  a3 {[%clk 0:00:23]} 33. b5 {[%clk 0:00:33]}  Qc3 {[%clk 0:00:11]} 34. b6 {[%clk 0:00:20]}  Qxe5 {[%clk 0:00:08]} 35. Qxe5 {[%clk 0:00:19]}  Rxe5 {[%clk 0:00:08]} 36. b7 {[%clk 0:00:19]}  Re1 {[%clk 0:00:04]} 37. Rxe1 {[%clk 0:00:16]}  Rxe1+ {[%clk 0:00:05]} 38. Kh2 {[%clk 0:00:17]}  Rb1 {[%clk 0:00:05]} 39. Rd8+ {[%clk 0:00:16]}  Kg7 {[%clk 0:00:05]} 40. b8=Q {[%clk 0:00:16]}  Rxb8 {[%clk 0:00:00]} 41. Rxb8 {[%clk 0:00:17]} 1-0

[Event "January 2 Early 2024"]
[Site "https://www.chess.com"]
[Date "2024.01.02"]
[Round "10"]
[White "Winkels, Marcel"]
[Black "Gaboyan, Susanna"]
[Result "1/2-1/2"]
[Board "161"]
[TimeControl "180+1"]
[WhiteFideId "1003887"]
[BlackFideId "13303627"]
[WhiteElo "2013"]
[BlackElo "2327"]
[WhiteTeam "NED"]
[BlackTeam "ARM"]
[WhiteClock "0:00:08"]
[BlackClock "0:00:05"]

1. c4 {[%clk 0:03:00]}  Nf6 {[%clk 0:02:44]} 2. Nc3 {[%clk 0:02:58]}  d6 {[%clk 0:02:44]} 3. g3 {[%clk 0:02:57]}  g6 {[%clk 0:02:43]} 4. Bg2 {[%clk 0:02:58]}  Bg7 {[%clk 0:02:44]} 5. Nf3 {[%clk 0:02:57]}  O-O {[%clk 0:02:44]} 6. O-O {[%clk 0:02:58]}  e5 {[%clk 0:02:44]} 7. d3 {[%clk 0:02:58]}  Nc6 {[%clk 0:02:41]} 8. Bg5 {[%clk 0:02:58]}  h6 {[%clk 0:02:40]} 9. Bxf6 {[%clk 0:02:58]}  Qxf6 {[%clk 0:02:40]} 10. Nd5 {[%clk 0:02:59]}  Qd8 {[%clk 0:02:40]} 11. Rb1 {[%clk 0:02:58]}  Ne7 {[%clk 0:02:40]} 12. Nd2 {[%clk 0:02:48]}  c6 {[%clk 0:02:35]} 13. Nxe7+ {[%clk 0:02:47]}  Qxe7 {[%clk 0:02:35]} 14. b4 {[%clk 0:02:47]}  a6 {[%clk 0:02:31]} 15. a4 {[%clk 0:02:46]}  Be6 {[%clk 0:02:26]} 16. b5 {[%clk 0:02:45]}  axb5 {[%clk 0:02:26]} 17. axb5 {[%clk 0:02:45]}  d5 {[%clk 0:02:27]} 18. bxc6 {[%clk 0:02:41]}  bxc6 {[%clk 0:02:26]} 19. cxd5 {[%clk 0:02:32]}  cxd5 {[%clk 0:02:27]} 20. Rb6 {[%clk 0:02:29]}  Rfb8 {[%clk 0:02:17]} 21. Qb3 {[%clk 0:02:26]}  Qc7 {[%clk 0:02:11]} 22. Rxb8+ {[%clk 0:02:11]}  Rxb8 {[%clk 0:02:12]} 23. Qa2 {[%clk 0:02:11]}  e4 {[%clk 0:02:07]} 24. Rb1 {[%clk 0:02:02]}  d4 {[%clk 0:01:56]} 25. Rxb8+ {[%clk 0:01:53]}  Qxb8 {[%clk 0:01:57]} 26. Nc4 {[%clk 0:01:53]}  exd3 {[%clk 0:01:44]} 27. exd3 {[%clk 0:01:52]}  Qb4 {[%clk 0:01:44]} 28. h4 {[%clk 0:01:36]}  Bf6 {[%clk 0:01:37]} 29. Kh2 {[%clk 0:01:32]}  Kg7 {[%clk 0:01:36]} 30. Qa6 {[%clk 0:01:23]}  Qc3 {[%clk 0:01:33]} 31. Nd6 {[%clk 0:01:17]}  Be5 {[%clk 0:01:20]} 32. Ne4 {[%clk 0:01:09]}  Qb4 {[%clk 0:01:09]} 33. Qa7 {[%clk 0:01:04]}  Bf5 {[%clk 0:00:51]} 34. Qa6 {[%clk 0:00:46]}  Qe1 {[%clk 0:00:35]} 35. f4 {[%clk 0:00:41]}  Bxe4 {[%clk 0:00:31]} 36. Bxe4 {[%clk 0:00:36]}  Qf2+ {[%clk 0:00:28]} 37. Bg2 {[%clk 0:00:35]}  Bf6 {[%clk 0:00:28]} 38. Qc4 {[%clk 0:00:31]}  g5 {[%clk 0:00:27]} 39. fxg5 {[%clk 0:00:30]}  hxg5 {[%clk 0:00:27]} 40. Qc8 {[%clk 0:00:22]}  gxh4 {[%clk 0:00:21]} 41. Qg4+ {[%clk 0:00:17]}  Kh7 {[%clk 0:00:18]} 42. Qh5+ {[%clk 0:00:17]}  Kg8 {[%clk 0:00:17]} 43. Qg4+ {[%clk 0:00:17]}  Bg7 {[%clk 0:00:16]} 44. gxh4 {[%clk 0:00:16]}  Kh8 {[%clk 0:00:09]} 45. h5 {[%clk 0:00:16]}  Be5+ {[%clk 0:00:08]} 46. Kh3 {[%clk 0:00:15]}  Qe3+ {[%clk 0:00:08]} 47. Qf3 {[%clk 0:00:14]}  Qg5 {[%clk 0:00:07]} 48. Qg4 {[%clk 0:00:09]}  Qe3+ {[%clk 0:00:04]} 49. Qf3 {[%clk 0:00:08]}  Qg5 {[%clk 0:00:04]} 50. Qg4 {[%clk 0:00:09]}  Qf6 {[%clk 0:00:05]} 51. Qf3 {[%clk 0:00:08]}  Qe6+ {[%clk 0:00:03]} 52. Qg4 {[%clk 0:00:08]}  Qe7 {[%clk 0:00:02]} 53. Be4 {[%clk 0:00:07]}  Qf6 {[%clk 0:00:02]} 54. Qf5 {[%clk 0:00:02]}  Qg7 {[%clk 0:00:02]} 55. Qg4 {[%clk 0:00:02]}  Qh6 {[%clk 0:00:01]} 56. Qf5 {[%clk 0:00:02]}  Qe3+ {[%clk 0:00:01]} 57. Kg2 {[%clk 0:00:03]}  Qg3+ {[%clk 0:00:01]} 58. Kf1 {[%clk 0:00:03]}  Qf4+ {[%clk 0:00:01]} 59. Qxf4 {[%clk 0:00:02]}  Bxf4 {[%clk 0:00:02]} 60. Ke2 {[%clk 0:00:02]}  Kg7 {[%clk 0:00:02]} 61. Kf3 {[%clk 0:00:03]}  Be3 {[%clk 0:00:02]} 62. Kg4 {[%clk 0:00:03]}  Kh6 {[%clk 0:00:03]} 63. Bf5 {[%clk 0:00:04]}  Bf2 {[%clk 0:00:02]} 64. Be4 {[%clk 0:00:05]}  Be3 {[%clk 0:00:03]} 65. Bf5 {[%clk 0:00:05]}  f6 {[%clk 0:00:03]} 66. Be4 {[%clk 0:00:06]}  Bf2 {[%clk 0:00:04]} 67. Bf5 {[%clk 0:00:07]}  Be3 {[%clk 0:00:04]} 68. Be4 {[%clk 0:00:08]}  Bf2 {[%clk 0:00:04]} 69. Bf5 {[%clk 0:00:08]}  Be3 {[%clk 0:00:05]} 1/2-1/2